[Event "*** Titled Tuesday 3|2 Blitz (Late)"]
[Site "Chess.com"]
[Date "2017.01.03"]
[Round "3"]
[White "flubs"]
[Black "fastestmindalive"]
[Result "0-1"]
[WhiteElo "2240"]
[BlackElo "2425"]
[TimeControl "180+2"]
[EndTime "17:37:13 PST"]
[Termination "fastestmindalive won by resignation"]

1. d4 {[%clk 0:03:02]} 1... Nf6 {[%clk 0:03:00.7]} 2. c4 {[%clk 0:03:01.7]} 2...
e5 {[%clk 0:03:01.6]} 3. dxe5 {[%clk 0:03:02.4]} 3... Ng4 {[%clk 0:03:02.7]} 4.
Bf4 {[%clk 0:03:03.3]} 4... Nc6 {[%clk 0:03:03.4]} 5. Nf3 {[%clk 0:03:01]} 5...
Bb4+ {[%clk 0:03:04.9]} 6. Nbd2 {[%clk 0:03:01.7]} 6... Qe7 {[%clk 0:03:04.1]}
7. e3 {[%clk 0:03:02.1]} 7... Ngxe5 {[%clk 0:03:05]} 8. Nxe5 {[%clk 0:03:00.2]}
8... Nxe5 {[%clk 0:03:06.9]} 9. Be2 {[%clk 0:03:00.4]} 9... d6 {[%clk 0:03:08]}
10. O-O {[%clk 0:02:58.4]} 10... a5 {[%clk 0:03:02.3]} 11. Nf3 {[%clk
0:02:53.1]} 11... O-O {[%clk 0:02:59.3]} 12. a3 {[%clk 0:02:30.8]} 12... Bc5
{[%clk 0:02:59.9]} 13. Qd2 {[%clk 0:02:29.1]} 13... a4 {[%clk 0:02:59.4]} 14.
Nd4 {[%clk 0:02:22.2]} 14... Ng6 {[%clk 0:02:55.9]} 15. Bg3 {[%clk 0:02:19.6]}
15... f5 {[%clk 0:02:43.7]} 16. Bf3 {[%clk 0:02:09.8]} 16... Kh8 {[%clk
0:02:44.6]} 17. Rfe1 {[%clk 0:02:08.3]} 17... Qf6 {[%clk 0:02:45.4]} 18. Rad1
{[%clk 0:02:06.5]} 18... Ne5 {[%clk 0:02:32.7]} 19. Be2 {[%clk 0:02:03.5]} 19...
Be6 {[%clk 0:02:24.5]} 20. Qc3 {[%clk 0:01:54.4]} 20... Bg8 {[%clk 0:02:23.7]}
21. Nb5 {[%clk 0:01:48.9]} 21... Rac8 {[%clk 0:02:19.9]} 22. Rd2 {[%clk
0:01:40.3]} 22... Nc6 {[%clk 0:02:18.9]} 23. Red1 {[%clk 0:01:30.6]} 23... Qxc3
{[%clk 0:02:17.4]} 24. Nxc3 {[%clk 0:01:32.5]} 24... Ra8 {[%clk 0:02:18.4]} 25.
Nd5 {[%clk 0:01:25.5]} 25... Bxd5 {[%clk 0:02:17.7]} 26. Rxd5 {[%clk 0:01:21.2]}
26... Ne7 {[%clk 0:02:18.7]} 27. R5d2 {[%clk 0:01:19.5]} 27... Ra6 {[%clk
0:02:02.8]} 28. Bh5 {[%clk 0:01:09.9]} 28... g6 {[%clk 0:02:02.4]} 29. Bf3
{[%clk 0:01:10.9]} 29... Rb6 {[%clk 0:02:02.6]} 30. Rc2 {[%clk 0:01:09.4]} 30...
Kg7 {[%clk 0:01:59.6]} 31. h3 {[%clk 0:01:07.9]} 31... Ra8 {[%clk 0:01:57]} 32.
Kf1 {[%clk 0:01:02.2]} 32... Kf8 {[%clk 0:01:55.9]} 33. Bf4 {[%clk 0:01:01.4]}
33... Ng8 {[%clk 0:01:55.6]} 34. Ke2 {[%clk 0:01:01]} 34... Nf6 {[%clk
0:01:56.4]} 35. g4 {[%clk 0:01:00.4]} 35... Kf7 {[%clk 0:01:54]} 36. Bg3 {[%clk
0:00:57.9]} 36... Ne4 {[%clk 0:01:51.8]} 37. Bh2 {[%clk 0:00:48.3]} 37... Rb3
{[%clk 0:01:48.3]} 38. Bg2 {[%clk 0:00:45.7]} 38... Re8 {[%clk 0:01:46.1]} 39.
Rd3 {[%clk 0:00:41.8]} 39... Nxf2 {[%clk 0:01:34.4]} 40. Rxb3 {[%clk 0:00:40.1]}
40... axb3 {[%clk 0:01:33.2]} 41. Rc3 {[%clk 0:00:41.5]} 41... Ne4 {[%clk
0:01:21.7]} 42. Rxb3 {[%clk 0:00:42.6]} 42... fxg4 {[%clk 0:01:09.9]} 43. hxg4
{[%clk 0:00:41.4]} 43... Bb6 {[%clk 0:01:08.9]} 44. Rd3 {[%clk 0:00:39.4]} 44...
Nc5 {[%clk 0:01:08.8]} 45. Rc3 {[%clk 0:00:33.3]} 45... Na4 {[%clk 0:01:07.7]}
46. Rb3 {[%clk 0:00:32.2]} 46... Nc5 {[%clk 0:01:05.4]} 47. Rc3 {[%clk
0:00:33.3]} 47... Ne4 {[%clk 0:00:59.1]} 48. Rd3 {[%clk 0:00:34.2]} 48... Kf6
{[%clk 0:00:56.6]} 49. b4 {[%clk 0:00:35.1]} 49... Kg5 {[%clk 0:00:57.1]} 50.
Bf3 {[%clk 0:00:30.1]} 50... Kh4 {[%clk 0:00:54.6]} 51. Bf4 {[%clk 0:00:20.6]}
51... Ng3+ {[%clk 0:00:50.6]} 52. Kf2 {[%clk 0:00:16.5]} 52... Ne4+ {[%clk
0:00:51.4]} 53. Kg2 {[%clk 0:00:17.9]} 53... g5 {[%clk 0:00:31.6]} 54. Bh2
{[%clk 0:00:16.9]} 54... h5 {[%clk 0:00:30.2]} 55. gxh5 {[%clk 0:00:15.1]} 55...
g4 {[%clk 0:00:31.6]} 56. Be2 {[%clk 0:00:10.8]} 56... Kxh5 {[%clk 0:00:30]} 57.
Rd5+ {[%clk 0:00:10.9]} 57... Kg6 {[%clk 0:00:30.5]} 58. Bxg4 {[%clk 0:00:11.3]}
58... Nf6 {[%clk 0:00:31.9]} 59. Bf3 {[%clk 0:00:04.2]} 59... Nxd5 {[%clk
0:00:32.5]} 60. Bxd5 {[%clk 0:00:06.1]} 60... c6 {[%clk 0:00:33]} 61. Bf3 {[%clk
0:00:06.7]} 61... Rxe3 {[%clk 0:00:33.7]} 62. Bxd6 {[%clk 0:00:07.9]} 62... Rxa3
{[%clk 0:00:34.6]} 63. b5 {[%clk 0:00:09.4]} 63... Ra2+ {[%clk 0:00:36]} 64. Kg3
{[%clk 0:00:10.3]} 64... cxb5 {[%clk 0:00:37.2]} 65. cxb5 {[%clk 0:00:11.8]}
65... Bf2+ {[%clk 0:00:36.9]} 66. Kg4 {[%clk 0:00:09.2]} 66... b6 {[%clk
0:00:38.1]} 67. Bc6 {[%clk 0:00:08.6]} 67... Kf6 {[%clk 0:00:37]} 68. Bc7 {[%clk
0:00:09.2]} 68... Bc5 {[%clk 0:00:37.8]} 69. Kf3 {[%clk 0:00:10.4]} 69... Ke6
{[%clk 0:00:38.1]} 70. Ke4 {[%clk 0:00:11.8]} 70... Ra4+ {[%clk 0:00:39]} 71.
Kd3 {[%clk 0:00:13]} 71... Rd4+ {[%clk 0:00:40.5]} 72. Kc3 {[%clk 0:00:14.6]}
72... Rh4 {[%clk 0:00:41.6]} 73. Kd3 {[%clk 0:00:15.7]} 73... Rd4+ {[%clk
0:00:40.1]} 74. Kc3 {[%clk 0:00:16.9]} 74... Rd1 {[%clk 0:00:40.8]} 75. Kc2
{[%clk 0:00:18]} 75... Ra1 {[%clk 0:00:38.5]} 76. Kb2 {[%clk 0:00:18.9]} 76...
Ra7 {[%clk 0:00:39.4]} 77. Bg3 {[%clk 0:00:18.4]} 77... Bd4+ {[%clk 0:00:39.3]}
78. Kb3 {[%clk 0:00:18.7]} 78... Bc5 {[%clk 0:00:39.5]} 79. Kb2 {[%clk
0:00:19.8]} 79... Rg7 {[%clk 0:00:37.8]} 80. Bf4 {[%clk 0:00:19.5]} 80... Bd6
{[%clk 0:00:38]} 81. Be3 {[%clk 0:00:18.3]} 81... Bc5 {[%clk 0:00:37.3]} 82. Bf4
{[%clk 0:00:19.6]} 82... Kf5 {[%clk 0:00:38.4]} 83. Bb8 {[%clk 0:00:18]} 83...
Bd4+ {[%clk 0:00:37.8]} 84. Kc2 {[%clk 0:00:18.5]} 84... Be5 {[%clk 0:00:38.8]}
85. Bxe5 {[%clk 0:00:16.7]} 85... Kxe5 {[%clk 0:00:40.7]} 86. Kb3 {[%clk
0:00:17.4]} 86... Kd4 {[%clk 0:00:41.9]} 87. Kb4 {[%clk 0:00:18.3]} 87... Rg1
{[%clk 0:00:42.4]} 88. Kb3 {[%clk 0:00:19.1]} 88... Rg3+ {[%clk 0:00:43.1]} 89.
Kb4 {[%clk 0:00:20.3]} 89... Rc3 {[%clk 0:00:44.3]} 90. Bd7 {[%clk 0:00:20.6]}
90... Rc4+ {[%clk 0:00:44.4]} 91. Kb3 {[%clk 0:00:22.1]} 91... Rc3+ {[%clk
0:00:45.6]} 92. Kb4 {[%clk 0:00:23.2]} 92... Rc1 {[%clk 0:00:46.7]} 93. Bc6
{[%clk 0:00:22.9]} 93... Rb1+ {[%clk 0:00:47.8]} 94. Ka3 {[%clk 0:00:23.2]}
94... Kc3 {[%clk 0:00:48.5]} 95. Ka2 {[%clk 0:00:24.6]} 95... Rb4 {[%clk
0:00:49.2]} 96. Bd7 {[%clk 0:00:25.4]} 96... Ra4+ {[%clk 0:00:50.2]} 97. Kb1
{[%clk 0:00:26.3]} 97... Rd4 {[%clk 0:00:50.5]} 98. Ka2 {[%clk 0:00:26.6]} 98...
Rxd7 {[%clk 0:00:51]} 0-1

[Event "*** Titled Tuesday 3|2 Blitz (Late)"]
[Site "Chess.com"]
[Date "2017.01.03"]
[Round "4"]
[White "Cruel_Yaro"]
[Black "iturrizaga"]
[Result "1/2-1/2"]
[WhiteElo "2597"]
[BlackElo "2688"]
[TimeControl "180+2"]
[EndTime "17:38:41 PST"]
[Termination "Game drawn by agreement"]

1. e4 {[%clk 0:03:02]} 1... c5 {[%clk 0:03:01.1]} 2. Nf3 {[%clk 0:03:02.8]} 2...
Nc6 {[%clk 0:03:02.8]} 3. Nc3 {[%clk 0:03:02.5]} 3... g6 {[%clk 0:03:04]} 4. d4
{[%clk 0:03:00.4]} 4... cxd4 {[%clk 0:03:05.9]} 5. Nxd4 {[%clk 0:03:01.7]} 5...
Bg7 {[%clk 0:03:07.6]} 6. Be3 {[%clk 0:03:03]} 6... Nf6 {[%clk 0:03:08.8]} 7.
Bc4 {[%clk 0:03:04]} 7... O-O {[%clk 0:03:10.4]} 8. Bb3 {[%clk 0:03:02.6]} 8...
a5 {[%clk 0:03:10.9]} 9. O-O {[%clk 0:03:02.7]} 9... Nxd4 {[%clk 0:03:12.1]} 10.
Bxd4 {[%clk 0:03:02.3]} 10... d6 {[%clk 0:03:14]} 11. Re1 {[%clk 0:03:00]} 11...
Bd7 {[%clk 0:03:12.1]} 12. e5 {[%clk 0:03:00.2]} 12... dxe5 {[%clk 0:03:10.7]}
13. Bxe5 {[%clk 0:03:01.1]} 13... Bc6 {[%clk 0:03:11.5]} 14. Qxd8 {[%clk
0:02:59.2]} 14... Rfxd8 {[%clk 0:03:11.6]} 15. Rad1 {[%clk 0:02:59.9]} 1/2-1/2

[Event "*** Titled Tuesday 3|2 Blitz (Late)"]
[Site "Chess.com"]
[Date "2017.01.03"]
[Round "4"]
[White "MFBerna"]
[Black "PelinGorki"]
[Result "0-1"]
[WhiteElo "2210"]
[BlackElo "2415"]
[TimeControl "180+2"]
[EndTime "17:39:39 PST"]
[Termination "PelinGorki won by resignation"]

1. e4 {[%clk 0:03:00]} 1... d6 {[%clk 0:03:00.7]} 2. d4 {[%clk 0:03:00.2]} 2...
Nf6 {[%clk 0:03:02.2]} 3. Nc3 {[%clk 0:03:00.9]} 3... c6 {[%clk 0:03:02.9]} 4.
Nf3 {[%clk 0:03:00.9]} 4... Bg4 {[%clk 0:03:03.2]} 5. Be3 {[%clk 0:03:01.1]}
5... e6 {[%clk 0:03:03.5]} 6. Be2 {[%clk 0:02:57.4]} 6... d5 {[%clk 0:03:04]} 7.
e5 {[%clk 0:02:49.3]} 7... Nfd7 {[%clk 0:03:04.7]} 8. Qd2 {[%clk 0:02:38]} 8...
Be7 {[%clk 0:03:05.1]} 9. O-O-O {[%clk 0:02:35.3]} 9... a6 {[%clk 0:03:05.4]}
10. h3 {[%clk 0:02:31.7]} 10... Bxf3 {[%clk 0:03:05.7]} 11. Bxf3 {[%clk
0:02:33.6]} 11... c5 {[%clk 0:03:05.4]} 12. Bg4 {[%clk 0:02:06.7]} 12... Nc6
{[%clk 0:03:03.4]} 13. f4 {[%clk 0:02:05.1]} 13... cxd4 {[%clk 0:03:04.6]} 14.
Bxd4 {[%clk 0:02:07]} 14... Nxd4 {[%clk 0:03:06]} 15. Qxd4 {[%clk 0:02:08.3]}
15... Bc5 {[%clk 0:03:07.7]} 16. Rd2 {[%clk 0:02:06.5]} 16... Bxd4 {[%clk
0:03:08]} 0-1

[Event "*** Titled Tuesday 3|2 Blitz (Late)"]
[Site "Chess.com"]
[Date "2017.01.03"]
[Round "4"]
[White "Mornar1951"]
[Black "Rating-Schmating"]
[Result "1-0"]
[WhiteElo "2575"]
[BlackElo "2279"]
[TimeControl "180+2"]
[EndTime "17:41:26 PST"]
[Termination "Mornar1951 won by resignation"]

1. Nf3 {[%clk 0:03:02]} 1... Nf6 {[%clk 0:02:59.6]} 2. c4 {[%clk 0:03:03.1]}
2... c5 {[%clk 0:02:59.2]} 3. Nc3 {[%clk 0:03:03.2]} 3... e6 {[%clk 0:02:55.1]}
4. e4 {[%clk 0:03:02]} 4... d6 {[%clk 0:02:56.4]} 5. d4 {[%clk 0:03:02.4]} 5...
cxd4 {[%clk 0:02:57.5]} 6. Nxd4 {[%clk 0:03:04.3]} 6... a6 {[%clk 0:02:59.1]} 7.
Be2 {[%clk 0:03:05.5]} 7... b6 {[%clk 0:03:00]} 8. Be3 {[%clk 0:03:06.5]} 8...
Bb7 {[%clk 0:03:01.3]} 9. f3 {[%clk 0:03:08.2]} 9... Nbd7 {[%clk 0:03:01.6]} 10.
O-O {[%clk 0:03:09.7]} 10... Be7 {[%clk 0:03:02.3]} 11. Qd2 {[%clk 0:03:09.4]}
11... O-O {[%clk 0:03:02.3]} 12. Rac1 {[%clk 0:03:10]} 12... Qc7 {[%clk
0:03:03.1]} 13. Rfd1 {[%clk 0:03:11]} 13... Rad8 {[%clk 0:03:03.4]} 14. b4
{[%clk 0:03:09.6]} 14... Qb8 {[%clk 0:03:02.6]} 15. a3 {[%clk 0:03:10.6]} 15...
Rfe8 {[%clk 0:03:01.6]} 16. Nb3 {[%clk 0:03:10.9]} 16... Rc8 {[%clk 0:02:58.1]}
17. Kh1 {[%clk 0:03:06.5]} 17... Ba8 {[%clk 0:02:56.4]} 18. Na4 {[%clk
0:02:57.9]} 18... b5 {[%clk 0:02:53.2]} 19. cxb5 {[%clk 0:02:56.4]} 19... axb5
{[%clk 0:02:54.1]} 20. Nc3 {[%clk 0:02:57.2]} 20... Bc6 {[%clk 0:02:53]} 21. Nd4
{[%clk 0:02:58.4]} 21... Ne5 {[%clk 0:02:49.7]} 22. Nxc6 {[%clk 0:02:58.9]}
22... Nxc6 {[%clk 0:02:48]} 23. Nxb5 {[%clk 0:02:56.4]} 23... Red8 {[%clk
0:02:47.2]} 24. Nd4 {[%clk 0:02:52.1]} 24... Nxd4 {[%clk 0:02:47.7]} 25. Bxd4
{[%clk 0:02:51.9]} 25... d5 {[%clk 0:02:48.2]} 26. e5 {[%clk 0:02:50.8]} 26...
Nd7 {[%clk 0:02:48.3]} 27. Qe3 {[%clk 0:02:48.2]} 27... Rxc1 {[%clk 0:02:47.6]}
28. Rxc1 {[%clk 0:02:48.5]} 28... Rc8 {[%clk 0:02:48]} 29. Rxc8+ {[%clk
0:02:47.4]} 29... Qxc8 {[%clk 0:02:48.5]} 30. Qc3 {[%clk 0:02:48.9]} 30... Qb7
{[%clk 0:02:44.8]} 31. b5 {[%clk 0:02:30.2]} 31... h6 {[%clk 0:02:42.1]} 32. Qc6
{[%clk 0:02:24.6]} 32... Nc5 {[%clk 0:02:21.9]} 33. Bxc5 {[%clk 0:02:18.1]}
33... Qxc6 {[%clk 0:02:23]} 34. bxc6 {[%clk 0:02:19.7]} 34... Bxc5 {[%clk
0:02:23.5]} 35. c7 {[%clk 0:02:21]} 1-0

[Event "*** Titled Tuesday 3|2 Blitz (Late)"]
[Site "Chess.com"]
[Date "2017.01.03"]
[Round "4"]
[White "Frolik67"]
[Black "AungTZ"]
[Result "1-0"]
[WhiteElo "2321"]
[BlackElo "2131"]
[TimeControl "180+2"]
[EndTime "17:42:08 PST"]
[Termination "Frolik67 won by resignation"]

1. e4 {[%clk 0:03:02]} 1... c5 {[%clk 0:03:00.3]} 2. Nf3 {[%clk 0:03:02.4]} 2...
Nc6 {[%clk 0:03:01.4]} 3. d4 {[%clk 0:03:02.6]} 3... cxd4 {[%clk 0:03:02.6]} 4.
Nxd4 {[%clk 0:03:03.8]} 4... Nf6 {[%clk 0:03:03.8]} 5. f3 {[%clk 0:03:04.2]}
5... d6 {[%clk 0:03:00.5]} 6. c4 {[%clk 0:03:02.9]} 6... g6 {[%clk 0:02:56]} 7.
Nc3 {[%clk 0:03:03.1]} 7... Bg7 {[%clk 0:02:56.3]} 8. Be3 {[%clk 0:03:02.3]}
8... a6 {[%clk 0:02:54.1]} 9. Be2 {[%clk 0:03:01]} 9... O-O {[%clk 0:02:50.7]}
10. Qd2 {[%clk 0:02:59.9]} 10... Nxd4 {[%clk 0:02:51.2]} 11. Bxd4 {[%clk
0:02:59.8]} 11... Be6 {[%clk 0:02:47.2]} 12. b3 {[%clk 0:02:59.6]} 12... Rc8
{[%clk 0:02:44]} 13. O-O {[%clk 0:02:58.9]} 13... Re8 {[%clk 0:02:36]} 14. Rac1
{[%clk 0:02:57.5]} 14... Qa5 {[%clk 0:02:36]} 15. Rfd1 {[%clk 0:02:43.9]} 15...
Qh5 {[%clk 0:02:15]} 16. Nd5 {[%clk 0:02:34.7]} 16... Bxd5 {[%clk 0:02:04.2]}
17. cxd5 {[%clk 0:02:34.8]} 17... Bh6 {[%clk 0:02:03.4]} 18. Be3 {[%clk
0:02:30.7]} 18... Bxe3+ {[%clk 0:01:58.9]} 19. Qxe3 {[%clk 0:02:32.6]} 19... Qe5
{[%clk 0:01:48.5]} 20. Rc4 {[%clk 0:02:29.5]} 20... Nd7 {[%clk 0:01:35.2]} 21.
Rdc1 {[%clk 0:02:23.4]} 21... Rxc4 {[%clk 0:01:32]} 22. Rxc4 {[%clk 0:02:23.5]}
22... Qa1+ {[%clk 0:01:32.1]} 23. Kf2 {[%clk 0:02:22.6]} 23... Qxa2 {[%clk
0:01:30.5]} 24. Rc7 {[%clk 0:02:23.2]} 24... Nc5 {[%clk 0:01:18.1]} 25. b4
{[%clk 0:02:22.9]} 25... Na4 {[%clk 0:01:19.1]} 26. Rxb7 {[%clk 0:02:22.2]}
26... Nc3 {[%clk 0:01:09.6]} 27. Qxc3 {[%clk 0:02:20.5]} 1-0

[Event "*** Titled Tuesday 3|2 Blitz (Late)"]
[Site "Chess.com"]
[Date "2017.01.03"]
[Round "4"]
[White "lrj2011"]
[Black "SabinaFoisor"]
[Result "0-1"]
[WhiteElo "2270"]
[BlackElo "2212"]
[TimeControl "180+2"]
[EndTime "17:42:14 PST"]
[Termination "SabinaFoisor won by checkmate"]

1. e4 {[%clk 0:03:02]} 1... e5 {[%clk 0:03:00.3]} 2. Nf3 {[%clk 0:03:02.5]} 2...
Nc6 {[%clk 0:03:01.3]} 3. Bc4 {[%clk 0:03:03.3]} 3... Bc5 {[%clk 0:03:00.5]} 4.
O-O {[%clk 0:03:04.3]} 4... Nf6 {[%clk 0:03:01.3]} 5. d4 {[%clk 0:03:05.5]} 5...
Bxd4 {[%clk 0:02:57.6]} 6. Nxd4 {[%clk 0:03:06.4]} 6... Nxd4 {[%clk 0:02:58.6]}
7. f4 {[%clk 0:03:06.9]} 7... d6 {[%clk 0:02:59.9]} 8. fxe5 {[%clk 0:03:08]}
8... dxe5 {[%clk 0:03:01.8]} 9. Bg5 {[%clk 0:03:09]} 9... Be6 {[%clk 0:02:52.8]}
10. Na3 {[%clk 0:03:09.3]} 10... Qe7 {[%clk 0:02:41.3]} 11. Bxf6 {[%clk
0:03:07.9]} 11... gxf6 {[%clk 0:02:40.5]} 12. c3 {[%clk 0:03:09.4]} 12... Bxc4
{[%clk 0:02:37.6]} 13. Nxc4 {[%clk 0:03:11]} 13... Ne6 {[%clk 0:02:38.5]} 14. b4
{[%clk 0:03:12.5]} 14... Rd8 {[%clk 0:02:19.7]} 15. Qa4+ {[%clk 0:03:09.6]}
15... Qd7 {[%clk 0:02:14.7]} 16. Qxa7 {[%clk 0:03:07.1]} 16... b5 {[%clk
0:02:09.8]} 17. Ne3 {[%clk 0:03:02.5]} 17... c6 {[%clk 0:02:01.2]} 18. Qa3
{[%clk 0:03:02.1]} 18... Qd3 {[%clk 0:01:52.1]} 19. Ng4 {[%clk 0:02:52.6]} 19...
Ke7 {[%clk 0:01:30.6]} 20. Nxf6 {[%clk 0:02:46]} 20... Qe3+ {[%clk 0:01:25.1]}
21. Kh1 {[%clk 0:02:45.7]} 21... Nf4 {[%clk 0:01:14]} 22. g3 {[%clk 0:02:00.4]}
22... Kxf6 {[%clk 0:01:07.9]} 23. gxf4 {[%clk 0:01:59.1]} 23... Qxe4+ {[%clk
0:01:08.2]} 24. Kg1 {[%clk 0:01:59.9]} 24... Rhg8+ {[%clk 0:01:06.2]} 25. Kf2
{[%clk 0:02:00.8]} 25... Rd2# {[%clk 0:01:06.3]} 0-1

[Event "*** Titled Tuesday 3|2 Blitz (Late)"]
[Site "Chess.com"]
[Date "2017.01.03"]
[Round "4"]
[White "MbMaster"]
[Black "MaestroASK"]
[Result "0-1"]
[WhiteElo "2369"]
[BlackElo "2473"]
[TimeControl "180+2"]
[EndTime "17:42:50 PST"]
[Termination "MaestroASK won by resignation"]

1. d4 {[%clk 0:03:02]} 1... d6 {[%clk 0:03:01.9]} 2. e4 {[%clk 0:03:00.6]} 2...
g6 {[%clk 0:03:03.2]} 3. Nf3 {[%clk 0:03:00.5]} 3... Bg7 {[%clk 0:03:03.4]} 4.
c3 {[%clk 0:03:02.1]} 4... e5 {[%clk 0:03:02.2]} 5. dxe5 {[%clk 0:03:01.7]} 5...
dxe5 {[%clk 0:03:02.7]} 6. Qxd8+ {[%clk 0:03:02.7]} 6... Kxd8 {[%clk 0:03:03.9]}
7. Bd3 {[%clk 0:02:56]} 7... f6 {[%clk 0:03:02.8]} 8. Nbd2 {[%clk 0:02:54.7]}
8... Nd7 {[%clk 0:03:01.9]} 9. Nc4 {[%clk 0:02:52.4]} 9... Bh6 {[%clk
0:03:00.9]} 10. Be3 {[%clk 0:02:37.1]} 10... Bxe3 {[%clk 0:02:59.8]} 11. Nxe3
{[%clk 0:02:39]} 11... c6 {[%clk 0:03:00.3]} 12. Ke2 {[%clk 0:02:36]} 12... Nh6
{[%clk 0:03:00.1]} 13. a4 {[%clk 0:02:32.6]} 13... a5 {[%clk 0:02:59.8]} 14. b4
{[%clk 0:02:31.5]} 14... Ke7 {[%clk 0:02:58.4]} 15. Nc4 {[%clk 0:02:31]} 15...
axb4 {[%clk 0:02:58.3]} 16. cxb4 {[%clk 0:02:32.9]} 16... Nf7 {[%clk 0:02:58.7]}
17. Rhd1 {[%clk 0:02:30.6]} 17... Nd6 {[%clk 0:02:56.4]} 18. Nxd6 {[%clk
0:02:25.4]} 18... Kxd6 {[%clk 0:02:53.8]} 19. Nd2 {[%clk 0:02:26.4]} 19... Rd8
{[%clk 0:02:47.6]} 20. Nc4+ {[%clk 0:02:27]} 20... Kc7 {[%clk 0:02:48.1]} 21. a5
{[%clk 0:02:24.8]} 21... Nf8 {[%clk 0:02:42]} 22. b5 {[%clk 0:02:19.6]} 22...
cxb5 {[%clk 0:02:23.8]} 23. Nb6 {[%clk 0:02:19.4]} 23... Ra7 {[%clk 0:02:12.8]}
24. Rac1+ {[%clk 0:01:56.3]} 24... Kb8 {[%clk 0:02:12.8]} 25. Bxb5 {[%clk
0:01:57.2]} 25... Bg4+ {[%clk 0:02:04.4]} 26. f3 {[%clk 0:01:56.9]} 26... Rxd1
{[%clk 0:02:04.2]} 27. Rxd1 {[%clk 0:01:53.1]} 27... Rxa5 {[%clk 0:02:03.5]} 28.
Bc4 {[%clk 0:01:23.5]} 28... Ka7 {[%clk 0:01:50.9]} 29. Nc8+ {[%clk 0:01:20.2]}
29... Bxc8 {[%clk 0:01:50.1]} 30. Rd8 {[%clk 0:01:17.8]} 30... Be6 {[%clk
0:01:50.1]} 0-1

[Event "*** Titled Tuesday 3|2 Blitz (Late)"]
[Site "Chess.com"]
[Date "2017.01.03"]
[Round "4"]
[White "rithwik2002"]
[Black "eltenedor"]
[Result "1-0"]
[WhiteElo "1738"]
[BlackElo "2030"]
[TimeControl "180+2"]
[EndTime "17:43:47 PST"]
[Termination "rithwik2002 won by resignation"]

1. e4 {[%clk 0:03:00.4]} 1... d5 {[%clk 0:02:58.7]} 2. exd5 {[%clk 0:03:00.3]}
2... Nf6 {[%clk 0:02:59.8]} 3. Nc3 {[%clk 0:02:57.3]} 3... Nxd5 {[%clk
0:03:00.1]} 4. Bc4 {[%clk 0:02:55.6]} 4... Nb6 {[%clk 0:03:01.3]} 5. Bb3 {[%clk
0:02:53.9]} 5... c5 {[%clk 0:03:02.6]} 6. d3 {[%clk 0:02:48]} 6... Bf5 {[%clk
0:03:03.6]} 7. Qf3 {[%clk 0:02:42.5]} 7... Qd7 {[%clk 0:03:04.7]} 8. Nge2 {[%clk
0:02:10.4]} 8... e6 {[%clk 0:02:59.1]} 9. g4 {[%clk 0:02:06.4]} 9... Bg6 {[%clk
0:02:58.1]} 10. a4 {[%clk 0:02:05]} 10... a6 {[%clk 0:02:02.9]} 11. a5 {[%clk
0:02:01.6]} 11... Nc8 {[%clk 0:02:03.6]} 12. Be3 {[%clk 0:01:58.7]} 12... Nc6
{[%clk 0:01:58.9]} 13. Nf4 {[%clk 0:01:54.6]} 13... Be7 {[%clk 0:01:44.1]} 14.
h4 {[%clk 0:01:49.3]} 14... Ne5 {[%clk 0:01:39.9]} 15. Qg2 {[%clk 0:01:47.1]}
15... h5 {[%clk 0:01:34.9]} 16. gxh5 {[%clk 0:01:43.5]} 16... Rxh5 {[%clk
0:01:18.9]} 17. Nxh5 {[%clk 0:01:41.1]} 17... Bxh5 {[%clk 0:01:20.7]} 18. Qxg7
{[%clk 0:01:37.6]} 18... Nf3+ {[%clk 0:01:09.7]} 19. Kf1 {[%clk 0:01:34.7]}
19... Nd6 {[%clk 0:00:59.8]} 20. Qh8+ {[%clk 0:01:32.6]} 20... Bf8 {[%clk
0:01:00.2]} 21. Qxh5 {[%clk 0:01:33.2]} 21... Nd4 {[%clk 0:00:57.1]} 22. Bxd4
{[%clk 0:01:31.9]} 22... cxd4 {[%clk 0:00:57.7]} 23. Ba4 {[%clk 0:01:32.2]}
23... Nb5 {[%clk 0:00:55.2]} 24. Nxb5 {[%clk 0:01:29.9]} 24... Kd8 {[%clk
0:00:44.1]} 25. Qg5+ {[%clk 0:01:16.7]} 1-0

[Event "*** Titled Tuesday 3|2 Blitz (Late)"]
[Site "Chess.com"]
[Date "2017.01.03"]
[Round "4"]
[White "ItalianMachine"]
[Black "JustKid"]
[Result "0-1"]
[WhiteElo "2212"]
[BlackElo "2243"]
[TimeControl "180+2"]
[EndTime "17:44:09 PST"]
[Termination "JustKid won by resignation"]

1. d4 {[%clk 0:03:02]} 1... Nf6 {[%clk 0:02:56]} 2. Nf3 {[%clk 0:02:59.8]} 2...
g6 {[%clk 0:02:55.8]} 3. c4 {[%clk 0:03:01.4]} 3... Bg7 {[%clk 0:02:57.7]} 4.
Qc2 {[%clk 0:03:02.1]} 4... O-O {[%clk 0:02:58.6]} 5. e4 {[%clk 0:03:02.7]} 5...
d6 {[%clk 0:03:00]} 6. Nc3 {[%clk 0:03:03.7]} 6... Nbd7 {[%clk 0:02:59.2]} 7.
Be2 {[%clk 0:03:02.3]} 7... e5 {[%clk 0:03:00.7]} 8. d5 {[%clk 0:03:03]} 8... c5
{[%clk 0:03:01.4]} 9. Be3 {[%clk 0:02:52.7]} 9... Ng4 {[%clk 0:02:58.9]} 10. Bd2
{[%clk 0:02:53.5]} 10... f5 {[%clk 0:02:59.8]} 11. Ng5 {[%clk 0:02:51.1]} 11...
Ndf6 {[%clk 0:02:38.3]} 12. f3 {[%clk 0:02:36.9]} 12... Nh6 {[%clk 0:02:35.3]}
13. O-O-O {[%clk 0:02:35.5]} 13... f4 {[%clk 0:02:22.1]} 14. g3 {[%clk 0:02:33]}
14... Nxd5 {[%clk 0:02:13.1]} 15. Nxd5 {[%clk 0:02:32.9]} 15... Qxg5 {[%clk
0:02:13.6]} 16. gxf4 {[%clk 0:02:30.5]} 16... exf4 {[%clk 0:02:14.5]} 17. h4
{[%clk 0:02:29.9]} 17... Qe5 {[%clk 0:02:10]} 18. Bc3 {[%clk 0:02:30.2]} 18...
Qh5 {[%clk 0:02:11.6]} 19. Bxg7 {[%clk 0:02:28]} 19... Kxg7 {[%clk 0:02:13.2]}
20. Qc3+ {[%clk 0:02:29.5]} 20... Qe5 {[%clk 0:02:14.2]} 21. Nc7 {[%clk
0:02:02]} 21... Rb8 {[%clk 0:02:09.7]} 22. Rxd6 {[%clk 0:02:02.8]} 22... Qxc3+
{[%clk 0:02:07.2]} 23. bxc3 {[%clk 0:02:04.7]} 23... Nf7 {[%clk 0:02:08.9]} 24.
Rd5 {[%clk 0:02:01.4]} 24... b6 {[%clk 0:02:07.5]} 25. h5 {[%clk 0:02:02.8]}
25... g5 {[%clk 0:02:00.3]} 26. e5 {[%clk 0:01:59.7]} 26... Bb7 {[%clk
0:01:57.2]} 27. Rd7 {[%clk 0:02:00.1]} 27... Kg8 {[%clk 0:01:57]} 28. h6 {[%clk
0:01:43.2]} 28... Nxe5 {[%clk 0:01:55.7]} 29. Rg7+ {[%clk 0:01:43.7]} 29... Kh8
{[%clk 0:01:57.1]} 30. Rxg5 {[%clk 0:01:41]} 30... Bxf3 {[%clk 0:01:50.6]} 31.
Re1 {[%clk 0:01:27.4]} 31... Bxe2 {[%clk 0:01:47.3]} 32. Rxe2 {[%clk 0:01:27.4]}
32... f3 {[%clk 0:01:48.6]} 33. Rgxe5 {[%clk 0:01:04.2]} 33... fxe2 {[%clk
0:01:45.5]} 34. Rxe2 {[%clk 0:01:06.1]} 34... Rf6 {[%clk 0:01:45.6]} 35. Re7
{[%clk 0:01:02.1]} 35... Rxh6 {[%clk 0:01:45.1]} 36. Nd5 {[%clk 0:01:03.5]}
36... Rg6 {[%clk 0:01:40.2]} 37. Rxa7 {[%clk 0:01:00.4]} 37... h5 {[%clk
0:01:40.6]} 38. Nf4 {[%clk 0:00:59.3]} 38... Rh6 {[%clk 0:01:40.7]} 39. Kd2
{[%clk 0:00:48.7]} 39... h4 {[%clk 0:01:41.4]} 40. Nh3 {[%clk 0:00:48.5]} 40...
Rg8 {[%clk 0:01:41.9]} 0-1